bitfinex/quotes_ETHUSD_20251118
["timestamp","ask_amount","ask_price","bid_price","bid_amount"]
[1763443260663,0.7776,3029.6,3028.4,1.16227152]
[1763443261065,0.7776,3029.6,3028.4,1.4522663]
[1763443261264,0.285,3029.5,3028.5,1.16227152]
[1763443261497,0.4926,3029.6,3028.6,1.16227152]
[1763443261659,0.285,3029.4,3028.7,1.16227152]
[1763443261860,0.002,3030.5,3028.7,1.16227152]
[1763443262161,0.285,3029.6,3029.0,1.16227152]
[1763443262476,0.285,3029.6,3028.8,0.4636]
[1763443262477,0.285,3029.5,3029.1,1.34947152]
[1763443262682,0.285,3029.5,3029.0,1.16227152]
[1763443262892,0.4926,3029.4,3029.0,1.16227152]
[1763443263069,0.285,3029.5,3028.7,1.73767626]
[1763443263070,0.285,3029.5,3028.9,1.16227152]
[1763443263284,0.285,3029.5,3029.0,1.16227152]
[1763443263285,0.7776,3029.5,3029.0,1.16227152]
[1763443264468,0.285,3029.5,3029.0,1.16227152]
[1763443264669,0.6249,3029.8,3029.0,1.16227152]
[1763443264872,0.4713,3029.1,3028.9,1.16227152]
[1763443265067,0.0844,3028.9,3028.4,1.16227152]
[1763443265303,2.8573,3028.8,3028.3,1.16227152]
[1763443265515,0.1823,3029.1,3028.4,1.16227152]
[1763443265719,0.1823,3029.1,3028.5,1.16227152]
[1763443266011,0.285,3029.0,3028.4,1.16227152]
[1763443266212,0.285,3028.9,3028.5,1.16227152]
[1763443266372,0.7455,3028.9,3028.4,1.16227152]
[1763443266790,0.285,3028.8,3028.4,1.16227152]
[1763443267232,0.7455,3028.8,3028.4,1.16227152]
[1763443267369,0.285,3028.8,3028.4,1.16227152]
[1763443267569,0.4605,3028.7,3028.4,1.16227152]
[1763443267805,0.4909,3028.5,3028.4,1.16227152]
[1763443268006,0.285,3028.8,3028.4,1.16227152]
[1763443268211,0.6428,3029.1,3028.5,1.16227152]
[1763443268714,0.285,3029.0,3028.6,1.16227152]
[1763443269217,0.285,3028.9,3028.7,1.16227152]
[1763443269575,0.4605,3029.5,3028.7,1.16227152]
[1763443269576,0.285,3028.8,3028.7,1.16227152]
[1763443269776,0.285,3028.8,3028.6,1.73767626]
[1763443269977,0.4605,3030.0,3028.7,2.19007626]
[1763443270217,0.285,3029.7,3029.2,1.16781643]
[1763443270617,0.7455,3029.7,3029.2,1.16781643]
[1763443271518,0.285,3029.7,3029.2,1.16781643]
[1763443271720,0.1802,3029.9,3029.2,1.16781643]
[1763443271881,0.285,3029.6,3029.3,1.16781643]
[1763443272514,0.285,3029.6,3029.2,1.16781643]
[1763443272515,0.4909,3029.4,3029.2,1.16781643]
[1763443272816,0.7455,3029.6,3028.8,1.16781643]
[1763443272817,0.0514,3029.2,3028.8,1.16781643]
[1763443273017,0.4865,3029.1,3028.7,1.16781643]
[1763443273176,0.285,3029.0,3028.7,1.16781643]
[1763443273379,0.2348,3028.8,3028.7,1.16781643]
[1763443273617,0.2348,3028.8,3028.4,1.16881643]
[1763443273790,0.4909,3028.5,3028.4,0.001]
[1763443273992,0.002,3029.8,3028.4,0.001]
[1763443274207,0.4605,3029.7,3028.6,1.16781643]
[1763443274443,0.4605,3029.7,3028.8,1.16781643]
[1763443274641,0.002,3029.8,3028.8,1.16781643]
[1763443274642,0.285,3029.6,3029.1,1.16781643]
[1763443275265,0.002,3029.8,3029.2,1.62041643]
[1763443275553,0.002,3030.8,3029.5,2.32968528]
[1763443275711,0.285,3030.7,3030.4,1.81175285]
[1763443276437,0.002,3030.8,3030.4,1.81175285]
[1763443276438,0.002,3030.8,3030.5,2.20422928]
[1763443276635,0.285,3030.7,3030.6,3.29967663]
[1763443276842,0.285,3030.7,3030.6,3.75227663]
[1763443277045,0.285,3030.7,3030.6,4.7096019]
[1763443278626,0.285,3030.7,3030.6,1.40992527]
[1763443278830,0.285,3030.7,3030.6,3.75227663]
[1763443279347,0.285,3030.7,3030.6,5.48964035]
[1763443279661,0.1913,3032.8,3030.7,0.872104]
[1763443279815,0.285,3032.7,3031.8,0.1834]
[1763443280514,0.1913,3032.8,3031.9,0.4666]
[1763443280840,0.285,3032.7,3031.9,3.76482725]
[1763443281043,0.1913,3032.9,3031.9,3.76482725]
[1763443281044,0.285,3032.6,3031.9,7.06308906]
[1763443281229,0.1913,3032.9,3032.0,0.4666]
[1763443281430,0.285,3032.8,3032.0,0.4666]
[1763443281746,0.285,3032.8,3031.8,0.1834]
[1763443282182,0.285,3032.8,3031.7,0.65639248]
[1763443282183,0.52641739,3032.7,3031.7,0.65639248]
[1763443282374,0.6734,3031.8,3030.9,0.1911]
[1763443282687,0.285,3031.7,3030.9,0.1911]
[1763443282862,0.285,3031.6,3030.9,0.1911]
[1763443283250,0.285,3031.6,3030.4,1.34890447]
[1763443283455,0.285,3031.6,3029.3,2.9121066]
[1763443283456,0.1913,3030.5,3029.5,0.1985]
[1763443283754,0.32624868,3030.4,3028.8,1.62390447]
[1763443283957,0.7702,3030.4,3028.8,0.4666]
[1763443284210,0.7702,3030.4,3028.8,3.7682337]
[1763443284500,0.4852,3030.3,3028.8,1.82884414]
[1763443284710,0.1913,3030.5,3028.8,5.13040159]
[1763443285006,0.7702,3030.4,3028.9,0.4666]
[1763443285303,2.384,3030.3,3028.9,1.33285871]
[1763443285517,0.90699264,3030.3,3029.0,0.59966603]
[1763443285795,0.7702,3030.2,3029.0,1.06626603]
[1763443286087,0.7702,3030.2,3029.1,0.6651]
[1763443286088,0.285,3030.2,3029.1,0.6651]
[1763443286275,0.285,3030.2,3029.2,0.21310247]
[1763443286869,0.285,3030.2,3029.2,3.51430158]
[1763443287753,0.285,3030.2,3029.2,3.98090158]
[1763443287957,0.6765,3030.9,3029.3,0.4666]
[1763443288258,0.285,3030.8,3029.5,0.86625871]
[1763443288459,0.7702,3030.8,3029.5,0.86625871]
[1763443288969,0.7702,3030.8,3029.3,0.86625871]
[1763443288970,0.1913,3029.6,3029.3,0.86625871]
[1763443289168,0.285,3029.5,3028.8,0.86625871]
[1763443289988,0.1913,3029.9,3028.8,5.29071764]
[1763443290320,0.1913,3030.2,3028.9,1.33285871]
[1763443290518,0.1913,3030.5,3029.4,0.86625871]
[1763443290672,0.285,3030.1,3029.4,0.86625871]
[1763443290870,0.285,3030.1,3029.5,3.49937473]
[1763443291074,0.285,3030.1,3029.6,0.43656334]
[1763443291774,0.285,3030.1,3029.5,1.06475871]
[1763443293708,0.285,3030.1,3029.5,4.36558097]
[1763443294011,0.285,3030.1,3029.6,0.86625871]
[1763443294214,0.285,3030.1,3029.7,0.86625871]
[1763443294504,0.1913,3030.5,3029.7,0.86625871]
[1763443294696,0.285,3030.0,3029.7,0.86625871]
[1763443295212,3.29875784,3031.5,3029.7,0.86625871]
[1763443295213,0.4852,3031.6,3029.9,1.15730447]
[1763443295411,1.193,3029.9,3029.8,5.90860859]
[1763443295707,0.285,3029.9,3029.8,5.44200859]
[1763443296206,0.4852,3031.5,3029.8,7.50529978]
[1763443296389,0.4852,3031.5,3030.3,0.87007379]
[1763443297008,0.04123507,3031.4,3030.3,0.87007379]
[1763443297204,0.285,3031.3,3030.3,0.87007379]
[1763443297722,0.1913,3032.0,3030.4,1.36877379]
[1763443297906,0.285,3031.6,3030.8,0.87007379]
[1763443298217,0.285,3031.6,3030.9,0.87007379]
[1763443300214,0.285,3031.6,3030.9,4.16940343]
[1763443300399,0.285,3031.6,3030.9,0.87007379]
[1763443300601,0.1913,3032.0,3031.0,0.87007379]
[1763443300828,0.285,3031.9,3031.2,0.87007379]
[1763443301031,0.002,3032.8,3031.4,0.87007379]
[1763443301032,0.285,3031.8,3031.4,0.87007379]
[1763443301190,0.285,3031.7,3031.6,3.2985882]
[1763443301391,0.285,3031.7,3031.6,4.91539885]
[1763443301743,0.285,3031.7,3031.6,6.17452345]
[1763443301907,0.285,3031.7,3031.6,2.87593525]
[1763443302102,0.1994,3032.7,3031.6,2.37723525]
[1763443302303,0.7715,3032.6,3031.8,0.86898207]
[1763443302507,0.1994,3031.7,3031.6,0.86898207]
[1763443302697,0.285,3031.7,3031.4,0.86898207]
[1763443303215,0.285,3031.7,3031.5,0.86898207]
[1763443303416,0.285,3031.7,3031.3,1.16009839]
[1763443303417,0.285,3031.7,3031.3,0.86898207]
[1763443303634,0.4747,3031.4,3031.1,0.86898207]
[1763443303934,0.4865,3031.6,3030.9,0.86898207]
[1763443303935,0.52773235,3031.6,3030.9,0.86898207]
[1763443304229,0.4865,3031.6,3031.0,0.86898207]
[1763443304541,0.285,3031.5,3031.1,0.86898207]
[1763443304736,0.285,3031.5,3031.2,0.86898207]
[1763443304928,0.285,3031.5,3031.3,0.86898207]
[1763443305439,2.384,3031.4,3031.3,0.86898207]
[1763443305638,2.384,3031.4,3031.2,0.86898207]
[1763443306022,1.192,3031.4,3031.3,0.86898207]
[1763443306741,0.285,3031.5,3031.2,0.86898207]
[1763443308280,0.4865,3031.4,3031.2,0.86898207]
[1763443308613,0.285,3031.5,3031.1,0.86898207]
[1763443308808,0.285,3031.4,3031.1,0.86898207]
[1763443309227,0.7715,3031.4,3031.1,0.86898207]
[1763443310040,0.7715,3031.4,3030.9,1.16009839]
[1763443310041,0.4747,3031.2,3030.9,0.86898207]
[1763443310244,0.4865,3031.3,3030.8,0.86898207]
[1763443310422,0.4865,3031.3,3030.7,0.86898207]
[1763443310632,0.002,3031.4,3030.7,1.07189012]
[1763443310833,0.285,3031.2,3031.0,0.86898207]
[1763443311142,0.285,3031.2,3030.9,0.86898207]
[1763443311451,0.7715,3031.2,3030.9,0.86898207]
[1763443312060,0.4704,3031.0,3030.5,0.86898207]
[1763443312255,0.284,3030.9,3030.4,0.86898207]
[1763443312434,0.4834,3030.9,3030.4,0.86898207]
[1763443312634,0.4834,3030.9,3030.5,0.86898207]
[1763443313040,0.4834,3030.9,3030.4,0.86898207]
[1763443313438,0.9699,3030.9,3030.4,0.86898207]
[1763443313674,0.284,3030.8,3030.5,0.86898207]
[1763443313959,0.284,3030.8,3030.6,0.86898207]
[1763443314267,0.4885,3031.4,3030.6,0.86898207]
[1763443314428,0.1994,3030.9,3030.6,0.86898207]
[1763443315376,2.384,3030.8,3030.6,0.86898207]
[1763443315867,2.384,3030.8,3030.5,0.86898207]
[1763443315868,1.2407,3030.7,3030.5,0.86898207]
[1763443316066,0.99814595,3030.6,3030.5,0.86898207]
[1763443316224,0.9569,3030.6,3030.3,0.001]
[1763443316422,0.284,3030.7,3030.3,0.001]
[1763443316423,0.4704,3030.4,3030.3,0.001]
[1763443316864,0.9567,3030.4,3030.3,0.001]
[1763443318576,0.1994,3030.9,3030.3,0.001]
[1763443318723,0.7587,3030.4,3030.3,0.86998207]
[1763443319065,0.284,3030.4,3030.3,0.86998207]
[1763443319580,1.2408,3030.4,3030.3,0.86998207]
[1763443320360,7.8405888,3030.4,3029.3,0.86898207]
[1763443320673,7.8405888,3030.4,3028.9,1.74014758]
[1763443320674,0.4747,3029.2,3028.8,0.86998207]
[1763443320882,0.6741,3028.9,3028.8,0.86998207]
[1763443321073,0.1994,3029.5,3028.8,0.001]
[1763443321390,0.1994,3030.0,3029.1,0.86898207]
[1763443321588,0.284,3029.9,3029.5,0.87004599]
[1763443321885,0.284,3029.8,3029.6,0.87004599]
[1763443322182,1.10639264,3030.9,3029.6,0.87004599]
[1763443322183,0.284,3029.7,3029.6,0.87004599]
[1763443322586,0.284,3029.7,3029.5,0.87004599]
[1763443323644,0.4865,3030.3,3029.6,1.34044599]
[1763443323850,0.285,3030.2,3029.6,1.34044599]
[1763443324065,0.285,3030.2,3029.6,1.92059472]
[1763443324247,0.4865,3030.7,3029.6,1.92059472]
[1763443324473,0.24064187,3030.9,3029.8,0.87004599]
[1763443324673,0.285,3030.6,3030.2,0.87004599]
[1763443325486,0.6859,3030.9,3030.2,0.87004599]
[1763443325487,0.1994,3030.9,3030.2,0.87004599]
[1763443325684,1.477,3030.8,3030.2,0.87004599]
[1763443325890,1.477,3030.8,3030.3,0.87004599]
[1763443326289,1.477,3030.8,3030.4,0.87004599]
[1763443326497,0.002,3031.4,3030.7,0.482]
[1763443326679,0.89279309,3033.3,3031.3,6.61650079]
[1763443326990,0.1931,3034.0,3032.6,1.16009839]
[1763443327161,0.1931,3034.0,3032.6,1.74014758]
[1763443327691,0.4512,3033.9,3032.7,1.15252093]
[1763443327896,0.288,3032.8,3032.7,5.53743934]
[1763443328048,0.288,3032.8,3032.7,1.38339602]
[1763443328388,0.288,3032.8,3032.7,3.79729176]
[1763443328600,0.288,3032.8,3032.7,0.4999]
[1763443328798,0.286,3032.8,3032.7,3.79729176]
[1763443328951,0.286,3032.8,3032.7,4.20279576]
[1763443329153,0.04119702,3034.2,3032.7,6.1118713]
[1763443329496,0.4512,3034.3,3032.7,6.1118713]
[1763443329497,0.4512,3034.3,3033.4,0.86133635]
[1763443329705,0.1931,3034.4,3033.5,0.86133635]
[1763443330251,0.1931,3034.4,3033.4,0.86133635]
[1763443330452,0.286,3034.3,3033.7,0.86133635]
[1763443330651,0.04119702,3034.2,3033.7,0.86133635]
[1763443330861,0.7372,3034.3,3033.4,0.86133635]
[1763443331293,0.286,3034.2,3033.4,4.65777502]
[1763443331450,0.286,3034.2,3033.6,0.86133635]
[1763443331651,0.7372,3034.2,3033.7,0.86133635]
[1763443331862,0.7372,3034.2,3033.4,0.86133635]
[1763443332295,0.286,3034.1,3033.4,4.65786603]
[1763443332587,0.286,3034.1,3033.4,0.86133635]
[1763443332892,0.286,3034.1,3033.2,0.86133635]
[1763443332893,0.7372,3034.1,3033.2,0.86133635]
[1763443333103,0.7372,3034.1,3033.2,1.06231483]
[1763443333390,0.90699264,3034.5,3033.2,4.35916304]
[1763443333391,0.286,3034.0,3033.2,4.35916304]
[1763443333564,0.4512,3034.5,3033.3,1.36123635]
[1763443333890,0.286,3034.4,3033.2,1.06231483]
[1763443334089,0.286,3034.4,3033.2,4.35913759]
[1763443334254,0.286,3034.3,3033.2,0.86133635]
[1763443334453,0.286,3034.3,3033.1,4.65818576]
[1763443334667,0.286,3034.3,3033.1,1.36123635]
[1763443334865,0.7372,3034.3,3033.1,0.86133635]
[1763443335186,0.7372,3034.3,3033.0,0.86133635]
[1763443335387,3.74219264,3034.2,3032.9,1.56093635]
[1763443335768,0.4512,3034.1,3032.9,1.56093635]
[1763443336100,0.4512,3034.1,3032.9,1.06103635]
[1763443336266,1.35819264,3034.1,3032.9,0.86133635]
[1763443336461,1.35819264,3034.1,3032.4,0.86133635]
[1763443336462,6.13069236,3033.8,3032.4,0.86133635]
[1763443336701,0.94819645,3033.7,3032.4,0.86133635]
[1763443336913,0.286,3033.6,3032.3,0.86133635]
[1763443337200,0.04120652,3033.5,3032.1,1.04183635]
[1763443337391,0.04120652,3033.5,3032.1,1.6901514]
[1763443337591,0.4512,3033.4,3032.1,1.6901514]
[1763443337793,0.90699264,3033.3,3031.9,0.86133635]
[1763443338003,0.90699264,3033.3,3031.8,0.86133635]
[1763443338165,0.4512,3033.2,3031.8,0.58081843]
[1763443338506,0.4512,3033.2,3031.8,1.36123635]
[1763443338677,0.4512,3033.2,3031.8,2.03477929]
[1763443338878,0.4512,3033.2,3031.8,0.86133635]
[1763443339194,0.286,3033.1,3031.9,0.4999]
[1763443339364,0.4512,3033.2,3031.9,1.31516753]
[1763443339569,0.286,3033.1,3031.9,1.31516753]
[1763443339772,0.286,3033.1,3032.0,0.4664]
[1763443340093,0.7414,3033.1,3032.0,0.4664]
[1763443340411,0.7414,3033.1,3032.1,0.1869]
[1763443340913,0.7414,3033.1,3032.1,0.6533]
[1763443340914,0.286,3033.1,3032.1,0.6533]
[1763443341814,0.286,3033.1,3032.2,3.29793549]
[1763443341982,0.286,3033.1,3032.2,0.4664]
[1763443342182,0.286,3033.1,3032.2,0.88103631]
[1763443343326,0.49661332,3033.0,3032.0,0.86133635]
[1763443343615,0.1998,3032.3,3031.6,0.86133635]
[1763443343792,0.677,3031.7,3031.4,0.001]
[1763443343990,0.285,3031.6,3031.4,0.001]
[1763443344399,0.7404,3031.6,3031.4,0.001]
[1763443345292,2.384,3031.5,3031.4,0.001]
[1763443345481,1.477,3031.5,3031.4,0.001]
[1763443346499,0.285,3031.5,3031.4,0.001]
[1763443346879,0.7404,3031.5,3031.4,0.001]
[1763443347074,1.2176,3031.5,3031.4,0.001]
[1763443348225,0.90699264,3031.4,3031.0,0.001]
[1763443348373,0.0344,3031.1,3031.0,0.001]
[1763443348791,0.4898,3031.1,3031.0,0.001]
[1763443350087,0.7748,3031.1,3031.0,0.001]
[1763443350991,11.11161732,3031.1,3030.7,0.001]
[1763443351186,0.6726,3030.8,3030.7,0.001]
[1763443351384,0.6726,3030.8,3029.8,0.68906427]
[1763443351590,6.58609236,3030.7,3029.5,0.86133635]
[1763443351791,0.285,3030.6,3029.4,1.55055931]
[1763443352118,0.7404,3030.6,3029.5,0.68922296]
[1763443352279,0.7404,3030.6,3029.6,1.55055931]
[1763443352280,0.285,3030.5,3029.6,1.55055931]
[1763443352473,0.285,3030.5,3029.7,0.68922296]
[1763443352673,0.285,3030.5,3029.3,0.86133635]
[1763443352674,0.90699264,3030.3,3029.3,0.86133635]
[1763443352887,0.021,3029.7,3029.3,0.86133635]
[1763443353077,0.1998,3029.8,3029.0,0.86133635]
[1763443353078,0.4772,3029.4,3029.0,0.86133635]
[1763443353305,6.45695193,3029.6,3028.8,0.001]
[1763443353306,0.677,3028.9,3028.8,0.001]
[1763443353546,0.4848,3028.9,3028.8,0.001]
[1763443353719,0.9814691,3028.9,3028.8,0.001]
[1763443353915,0.9814691,3028.9,3028.4,0.001]
[1763443354118,0.90699264,3028.6,3028.4,0.001]
[1763443354320,0.4554,3028.5,3028.4,0.001]
[1763443354518,0.49667455,3028.5,3028.4,0.001]
[1763443354750,0.4554,3028.5,3028.4,0.001]
[1763443354951,0.90699264,3028.2,3028.1,0.001]
[1763443355151,1.19199264,3028.2,3028.1,0.001]
[1763443355354,4.07267128,3028.2,3028.1,0.001]
[1763443355554,0.78167864,3028.2,3028.1,0.001]
[1763443355720,0.7404,3028.2,3028.1,0.001]
[1763443356553,0.1998,3028.9,3028.1,0.001]
[1763443356756,0.4544,3029.5,3028.1,0.6713]
[1763443356929,0.285,3029.4,3028.3,1.26684035]
[1763443357162,0.285,3029.4,3028.5,1.26684035]
[1763443357332,0.285,3029.4,3029.3,0.1869]
[1763443357540,0.285,3029.4,3028.6,1.34473635]
[1763443357757,0.285,3029.4,3028.5,0.66792949]
[1763443357758,0.285,3029.4,3028.7,0.68599608]
[1763443357958,0.285,3029.4,3028.4,1.10507144]
[1763443358164,0.4544,3029.8,3028.5,1.16952277]
[1763443358329,0.4544,3029.8,3028.6,4.69883783]
[1763443358330,0.285,3029.7,3028.6,4.69883783]
[1763443358525,0.285,3029.7,3028.7,0.68612277]
[1763443358731,0.04125957,3029.6,3028.7,0.68612277]
[1763443359062,0.04125957,3029.6,3028.6,0.71085942]
[1763443359063,0.04125957,3029.6,3028.6,0.22745942]
[1763443359262,0.04125957,3029.6,3028.4,0.24373509]
[1763443359263,0.49565957,3029.6,3028.4,0.24373509]
[1763443359434,1.36139264,3029.6,3028.1,1.33634847]
[1763443359763,1.36139264,3029.6,3028.2,0.68635399]
[1763443359939,0.4544,3029.5,3028.2,1.16975399]
[1763443360267,0.285,3029.4,3028.4,3.3020737]
[1763443360460,0.285,3029.4,3028.5,0.68635399]
[1763443360766,0.285,3029.4,3028.6,0.6862254]
[1763443360930,0.285,3029.4,3028.3,4.58180343]
[1763443361131,0.285,3029.4,3028.4,0.68623711]
[1763443361360,0.285,3029.4,3028.5,0.52680405]
[1763443361524,0.7394,3029.4,3028.6,0.68623711]
[1763443361727,0.7394,3029.4,3028.3,3.78551581]
[1763443361942,0.7394,3029.4,3028.4,0.68685674]
[1763443362366,0.49566365,3029.3,3028.4,0.68685674]
[1763443362561,0.49566365,3029.3,3028.5,0.68685674]
[1763443362562,0.4544,3029.3,3028.5,0.68685674]
[1763443362728,0.04126502,3029.2,3028.6,0.68685674]
[1763443362929,0.4544,3029.3,3028.2,0.86133635]
[1763443363173,0.4544,3029.3,3028.3,0.6872361]
[1763443363343,0.49566365,3029.3,3028.3,0.86088335]
[1763443363529,0.285,3029.4,3028.4,0.6872361]
[1763443363965,0.4544,3029.7,3028.5,0.4834]
[1763443364174,0.285,3029.6,3028.6,0.6872361]
[1763443364335,0.285,3029.6,3028.7,0.6872361]
[1763443364538,0.285,3029.6,3028.8,0.6872361]
[1763443364771,0.285,3029.6,3028.5,1.34473635]
[1763443364948,0.285,3029.6,3028.6,0.68796477]
[1763443365268,0.002,3029.4,3028.6,1.54930112]
[1763443365581,1.51926365,3029.3,3028.7,0.68796477]
[1763443365782,0.78066365,3029.3,3028.8,0.68796477]
[1763443365935,1.36139264,3029.2,3028.3,0.001]
[1763443366138,1.36139264,3029.2,3028.3,0.68969138]
[1763443366367,0.4544,3029.1,3028.4,0.68869138]
[1763443366564,0.04126774,3029.0,3028.3,0.001]
[1763443366770,0.1992,3028.5,3028.3,0.001]
[1763443366970,0.32627592,3028.4,3028.3,0.001]
[1763443367286,0.7394,3028.4,3028.3,0.001]
[1763443367771,0.78067592,3028.4,3028.3,0.001]
[1763443368144,0.7394,3028.4,3028.3,0.001]
[1763443368344,0.90699264,3028.8,3028.3,0.001]
[1763443368345,0.1992,3028.8,3028.3,0.001]
[1763443368670,0.285,3028.4,3028.3,0.001]
[1763443369365,0.7394,3028.4,3028.3,0.001]
[1763443370766,1.56059264,3028.8,3028.3,0.001]
[1763443370943,0.285,3028.7,3028.3,0.001]
[1763443371144,0.4544,3028.7,3028.3,0.001]
[1763443371480,6.13069236,3028.9,3028.3,0.001]
[1763443371481,0.1992,3028.9,3028.3,0.001]
[1763443371776,0.002,3029.4,3028.4,0.69017851]
[1763443371937,0.285,3029.3,3028.5,1.55151486]
[1763443372153,0.285,3029.3,3028.6,0.69017851]
[1763443372373,0.285,3029.3,3028.7,0.69017851]
[1763443372583,0.285,3029.3,3028.8,0.69017851]
[1763443372748,0.7394,3029.3,3028.9,0.69017851]
[1763443373077,0.7394,3029.3,3028.5,0.86133635]
[1763443373259,0.4544,3029.2,3028.6,0.69137601]
[1763443373436,0.4544,3029.2,3028.7,0.69137601]
[1763443373642,7.443189,3029.1,3028.4,0.86133635]
[1763443373840,7.443189,3029.1,3028.5,0.69273988]
[1763443374055,0.49566774,3029.0,3028.6,0.69273988]
[1763443374376,0.49566774,3029.0,3028.3,0.001]
[1763443374377,0.1992,3028.5,3028.3,0.001]
[1763443374543,0.604704,3028.5,3028.4,0.6938281]
[1763443374745,0.889704,3028.5,3028.4,0.6938281]
[1763443375301,4.63709664,3028.5,3028.4,0.6938281]
[1763443375586,4.23159264,3028.5,3028.4,0.6938281]
[1763443375988,1.56059264,3028.5,3028.4,0.6938281]
[1763443376191,3.03859264,3028.5,3028.4,0.6938281]
[1763443376392,1.31249664,3028.4,3028.3,0.001]
[1763443376639,5.06897034,3028.4,3028.3,0.001]
[1763443376843,5.06897034,3028.4,3027.6,0.001]
[1763443376844,0.90699264,3028.5,3027.5,0.34878432]
[1763443377003,0.285,3028.4,3027.7,1.63184847]
[1763443377203,0.285,3028.4,3027.8,1.14844847]
[1763443377507,0.1992,3028.9,3027.9,1.14844847]
[1763443377690,0.285,3028.8,3028.4,1.14844847]
[1763443378226,0.285,3028.8,3028.5,0.195]
[1763443378525,0.285,3028.8,3028.7,1.14844847]
[1763443378923,0.285,3028.8,3028.6,1.72267271]
[1763443380231,0.002,3029.4,3028.6,1.72267271]
[1763443382926,0.285,3029.3,3029.2,2.79800894]
[1763443383351,0.285,3029.3,3029.0,3.3014121]
[1763443383352,0.285,3029.3,3029.0,2.31460894]
[1763443383554,0.002,3029.4,3029.0,2.31460894]
[1763443383555,0.002,3029.4,3029.1,0.4834]
[1763443383854,0.285,3029.3,3029.1,2.79800894]
[1763443384348,0.287,3029.3,3029.1,2.27880265]
[1763443384554,0.287,3029.3,3029.2,0.55802002]
[1763443384753,0.002,3029.8,3029.3,0.405504]
[1763443384971,0.002,3029.7,3029.4,2.9121066]
[1763443385119,0.002,3029.8,3029.7,0.405504]
[1763443385463,0.1992,3031.9,3029.9,1.31249664]
[1763443385772,0.1992,3031.9,3031.3,1.15915116]
[1763443386111,0.285,3031.8,3031.4,1.15915116]
[1763443386349,0.285,3031.8,3031.2,1.15915116]
[1763443386724,0.285,3031.8,3031.0,1.73872674]
[1763443386725,0.285,3031.8,3031.3,1.15915116]
[1763443387141,0.7422,3031.8,3031.3,1.15915116]
[1763443387335,0.285,3031.8,3031.2,1.15915116]
[1763443387749,0.285,3031.8,3031.1,1.15915116]
[1763443387957,0.285,3031.8,3030.5,3.29977838]
[1763443387958,6.13069236,3031.6,3031.0,1.15915116]
[1763443388157,0.1992,3031.9,3030.8,1.15915116]
[1763443388475,0.1992,3031.9,3030.6,1.73872674]
[1763443388476,0.285,3031.5,3031.1,1.15915116]
[1763443388651,0.285,3031.5,3031.2,1.15915116]
[1763443388856,0.285,3031.5,3031.1,1.15915116]
[1763443389228,0.4572,3031.4,3030.9,1.15915116]
[1763443389444,0.4572,3031.4,3030.7,1.15915116]
[1763443389445,0.49843507,3031.4,3030.7,1.15915116]
[1763443389644,0.49843507,3031.4,3030.5,1.73872674]
[1763443389645,0.1943,3030.8,3030.4,1.15915116]
[1763443389841,0.285,3030.7,3030.4,1.15915116]
[1763443390152,0.285,3030.7,3030.3,1.15915116]
[1763443391232,0.285,3030.7,3029.4,3.30098081]
[1763443391233,0.04124595,3030.6,3030.2,1.15915116]
[1763443391558,0.04124595,3030.6,3029.8,1.15915116]
[1763443391729,0.04124595,3030.6,3029.1,0.63998648]
[1763443391730,1.31249664,3030.2,3029.1,0.63998648]
[1763443391934,1.31249664,3030.2,3028.9,1.73872674]
[1763443391935,0.1943,3029.7,3028.9,1.73872674]
[1763443392131,0.1943,3029.9,3028.8,1.73872674]
[1763443392555,0.4572,3029.8,3028.8,1.73872674]
[1763443392952,0.1943,3029.9,3028.8,2.25425941]
[1763443393129,0.6515,3029.9,3028.8,1.73872674]
[1763443394029,0.6515,3029.9,3028.7,2.04932674]
[1763443394366,0.04125684,3029.8,3028.7,1.73872674]
[1763443394568,0.04125684,3029.8,3028.6,1.73872674]
[1763443394569,0.4572,3029.8,3028.6,1.73872674]
[1763443394819,0.4572,3029.8,3028.7,1.73872674]
[1763443394976,0.4572,3029.8,3028.7,1.2194915]
[1763443395469,2.386,3029.7,3028.9,0.405504]
[1763443395669,1.193,3029.7,3029.1,0.405504]
[1763443395828,0.285,3030.1,3029.1,0.405504]
[1763443396027,0.285,3030.1,3029.3,0.405504]
[1763443396473,0.285,3030.1,3029.4,0.3106]
[1763443396859,0.285,3030.1,3029.5,0.405504]
[1763443397060,0.285,3030.1,3029.0,3.30140008]
[1763443397360,0.285,3030.1,3029.1,0.405504]
[1763443397566,0.285,3030.1,3029.3,0.405504]
[1763443398066,0.5191369,3029.9,3029.3,0.405504]
[1763443398252,0.5191369,3029.9,3029.5,0.405504]
[1763443398732,0.5191369,3029.9,3029.6,0.3106]
[1763443399069,0.285,3030.1,3029.6,0.3106]
[1763443399254,0.285,3030.1,3029.6,0.712288]
[1763443399450,0.285,3030.1,3029.6,4.01305377]
[1763443399665,0.285,3030.1,3029.7,0.3106]
[1763443399869,0.285,3030.1,3029.5,3.70633952]
[1763443400073,0.285,3030.1,3029.3,0.3106]
[1763443400278,0.285,3030.1,3029.3,3.91129727]
[1763443401385,0.285,3030.1,3029.0,2.31494069]
[1763443401386,0.04125412,3030.0,3029.0,2.31494069]
[1763443401689,0.7453,3030.1,3028.8,3.30163207]
[1763443401972,0.7453,3030.1,3028.7,9.22900119]
[1763443402171,0.7453,3030.1,3029.5,0.001]
[1763443402590,0.7453,3030.1,3029.1,0.001]
[1763443402899,0.4603,3030.0,3029.1,0.001]
[1763443403256,0.1997,3029.9,3029.1,0.001]
[1763443403817,0.50155684,3029.8,3029.1,0.001]
[1763443403958,0.1997,3029.9,3029.1,0.001]
[1763443404289,0.32625684,3029.8,3029.1,0.001]
[1763443404458,0.285,3029.8,3029.1,0.001]
[1763443404658,0.4603,3029.7,3029.1,0.001]